bitfinex/quotes_BTCUSD_20241023
["timestamp","ask_amount","ask_price","bid_price","bid_amount"]
[1729703844919,0.005,65795.0,65786.0,0.005]
[1729703845158,0.005,65795.0,65769.0,0.152046]
[1729703845159,0.17817785,65795.0,65780.0,0.01]
[1729703845378,0.45594,65794.0,65784.0,0.005]
[1729703845600,0.17817785,65790.0,65775.0,0.01]
[1729703845823,0.17817785,65790.0,65776.0,0.0047552]
[1729703846039,0.17817785,65785.0,65777.0,0.0047552]
[1729703846272,0.17817785,65785.0,65778.0,0.0047552]
[1729703846500,0.17817785,65785.0,65775.0,0.01]
[1729703846501,0.45594,65784.0,65779.0,0.0047552]
[1729703846728,0.46262351,65784.0,65780.0,0.0047552]
[1729703846950,0.46262351,65784.0,65779.0,0.005]
[1729703846951,0.46262351,65784.0,65781.0,0.00475524]
[1729703847208,0.46262351,65784.0,65777.0,0.01]
[1729703847436,0.25987904,65778.0,65771.0,0.01]
[1729703847630,0.25987904,65778.0,65772.0,0.00475566]
[1729703847852,0.45594,65777.0,65773.0,0.00475566]
[1729703848101,0.45594,65777.0,65774.0,0.00475566]
[1729703848330,0.45594,65777.0,65753.0,0.1815]
[1729703848331,0.25987904,65775.0,65765.0,0.01]
[1729703848547,0.25987904,65775.0,65766.0,0.00475627]
[1729703848755,0.25987904,65770.0,65767.0,0.00475627]
[1729703848973,0.22467904,65770.0,65765.0,0.01]
[1729703849203,0.45594,65769.0,65765.0,0.005]
[1729703849412,0.45594,65769.0,65766.0,0.0047566]
[1729703849626,0.45594,65769.0,65765.0,0.01]
[1729703850036,0.45594,65769.0,65766.0,0.00475652]
[1729703850243,0.45594,65769.0,65765.0,0.01]
[1729703850453,0.45594,65769.0,65756.0,0.005]
[1729703850454,0.45594,65769.0,65766.0,0.00475651]
[1729703850669,0.45594,65769.0,65741.0,0.26487904]
[1729703850670,0.25987904,65767.0,65757.0,0.005]
[1729703850879,0.25987904,65760.0,65758.0,0.004757]
[1729703851094,0.25987904,65760.0,65759.0,0.004757]
[1729703851310,0.451183,65759.0,65752.0,0.01]
[1729703851530,0.15050381,65758.0,65752.0,0.01]
[1729703851762,0.25987904,65755.0,65745.0,0.005]
[1729703851960,0.25987904,65755.0,65746.0,0.01]
[1729703851961,0.41038285,65755.0,65746.0,0.01]
[1729703852188,0.25987904,65747.0,65739.0,0.01]
[1729703852395,0.15050381,65754.0,65739.0,0.01]
[1729703852396,0.25987904,65742.0,65739.0,0.01]
[1729703852608,0.15050381,65746.0,65739.0,0.01]
[1729703852609,0.60168681,65746.0,65739.0,0.01]
[1729703853889,0.22807791,65745.0,65739.0,0.01]
[1729703854102,0.25987904,65742.0,65739.0,0.005]
[1729703854332,0.25987904,65742.0,65739.0,0.01]
[1729703854560,0.37858172,65745.0,65739.0,0.01]
[1729703854561,0.451183,65741.0,65739.0,0.01]
[1729703854784,0.25987904,65740.0,65739.0,0.01]
[1729703855001,0.21229332,65740.0,65739.0,0.01]
[1729703855221,0.66347632,65740.0,65739.0,0.01]
[1729703855637,0.66347632,65740.0,65739.0,0.01761351]
[1729703855842,0.66347632,65740.0,65739.0,0.01761346]
[1729703856509,0.66347632,65740.0,65739.0,0.01761345]
[1729703857144,0.451183,65740.0,65739.0,0.162116]
[1729703857361,0.451183,65740.0,65739.0,0.01761353]
[1729703857569,0.451183,65740.0,65739.0,0.16972953]
[1729703857780,0.451183,65740.0,65739.0,0.01761353]
[1729703857976,0.451183,65740.0,65739.0,0.16972953]
[1729703859317,0.451183,65740.0,65739.0,0.17924574]
[1729703859527,0.41692469,65740.0,65739.0,0.16972953]
[1729703859736,0.41692469,65740.0,65739.0,0.17924548]
[1729703859967,0.41692469,65740.0,65739.0,0.162116]
[1729703860181,0.000822,65742.0,65741.0,0.01]
[1729703860394,0.000822,65742.0,65740.0,0.00304196]
[1729703860603,0.28168003,65740.0,65739.0,0.157116]
[1729703860808,0.28168003,65740.0,65739.0,0.16472798]
[1729703861929,0.03168003,65740.0,65739.0,0.16472798]
[1729703862814,0.03168003,65740.0,65739.0,0.1677699]
[1729703863516,0.03168003,65740.0,65739.0,0.17252741]
[1729703864612,0.03168003,65740.0,65739.0,0.32803122]
[1729703864815,0.03168003,65740.0,65739.0,0.3249893]
[1729703865427,0.03168003,65740.0,65739.0,0.3199893]
[1729703866109,0.03168003,65740.0,65739.0,0.3249893]
[1729703866757,0.03168003,65740.0,65739.0,0.69490834]
[1729703866958,0.03168003,65740.0,65739.0,0.4350293]
[1729703868199,0.03168003,65740.0,65739.0,0.87530834]
[1729703868405,0.03168003,65740.0,65739.0,0.90782253]
[1729703868613,0.03168003,65740.0,65739.0,0.90978276]
[1729703868817,0.03168003,65740.0,65739.0,0.91377531]
[1729703869023,0.03168003,65740.0,65739.0,0.90978276]
[1729703869232,0.03168003,65740.0,65739.0,0.88789908]
[1729703869436,0.03168003,65740.0,65739.0,0.89741319]
[1729703869661,0.03168003,65740.0,65739.0,0.91375785]
[1729703869866,0.03168003,65740.0,65739.0,0.89948669]
[1729703870078,0.03168003,65740.0,65739.0,0.92136894]
[1729703871072,0.03168003,65740.0,65739.0,0.93924191]
[1729703871278,0.03168003,65740.0,65739.0,0.93163069]
[1729703871463,0.03168003,65740.0,65739.0,0.90113069]
[1729703871667,0.22807791,65748.0,65747.0,0.29705823]
[1729703871668,0.18051426,65748.0,65747.0,0.29705823]
[1729703871870,0.000822,65769.0,65756.0,0.157077]
[1729703872077,0.000822,65769.0,65756.0,0.1601182]
[1729703872271,0.000822,65769.0,65756.0,0.157077]
[1729703872472,0.000822,65769.0,65755.0,0.304159]
[1729703872473,0.000822,65769.0,65763.0,0.005]
[1729703872838,0.000822,65769.0,65749.0,0.005]
[1729703872839,0.14404896,65757.0,65749.0,0.005]
[1729703873043,0.14404896,65757.0,65755.0,0.00400266]
[1729703873258,0.14404896,65757.0,65756.0,0.02188146]
[1729703873463,0.14404896,65757.0,65756.0,0.00475684]
[1729703873672,0.14404896,65757.0,65756.0,0.02188236]
[1729703874428,0.10979929,65757.0,65756.0,0.02188236]
[1729703874634,0.10979929,65757.0,65756.0,0.17395936]
[1729703875137,0.10979929,65757.0,65756.0,0.32946317]
[1729703875550,0.10979929,65757.0,65756.0,0.32950317]
[1729703875946,0.10979929,65757.0,65756.0,0.3314634]
[1729703876153,0.10979929,65757.0,65756.0,0.32950317]
[1729703876778,0.04321252,65757.0,65756.0,0.32950317]
[1729703877144,0.04321252,65757.0,65756.0,0.3314634]
[1729703877381,0.04321252,65757.0,65756.0,0.4594634]
[1729703877590,0.04302949,65757.0,65756.0,0.4644634]
[1729703879501,0.04302949,65757.0,65756.0,0.47207713]
[1729703879876,0.000822,65769.0,65768.0,0.26400923]
[1729703880028,0.000822,65769.0,65768.0,0.72427444]
[1729703880433,0.000822,65769.0,65768.0,0.7242645]
[1729703880870,0.456972,65769.0,65768.0,0.7242645]
[1729703881076,0.456972,65769.0,65768.0,0.8059645]
[1729703881693,0.40942736,65769.0,65768.0,0.8059645]
[1729703882256,0.21111666,65769.0,65768.0,0.8059645]
[1729703882466,0.12649056,65769.0,65768.0,0.8059645]
[1729703882687,0.12649056,65769.0,65768.0,0.78409208]
[1729703882891,0.12649056,65769.0,65768.0,0.805961]
[1729703883305,0.15456847,65775.0,65774.0,0.52887427]
[1729703883521,0.22807791,65782.0,65781.0,0.267019]
[1729703883779,0.22807791,65782.0,65781.0,0.701231]
[1729703884009,0.45606,65782.0,65781.0,0.701231]
[1729703884227,0.45606,65782.0,65781.0,0.724231]
[1729703885317,0.001722,65806.0,65781.0,0.992631]
[1729703885526,0.22807791,65796.0,65783.0,0.44247804]
[1729703885737,0.22807791,65796.0,65795.0,0.189987]
[1729703885985,0.22807791,65796.0,65795.0,0.72223877]
[1729703886192,0.68403791,65796.0,65795.0,0.72223877]
[1729703886398,0.45151751,65796.0,65795.0,0.72223877]
[1729703886653,0.45151751,65796.0,65795.0,0.69923877]
[1729703886861,0.41381751,65796.0,65795.0,0.701199]
[1729703887070,0.41381751,65796.0,65795.0,0.73171959]
[1729703887281,0.41381751,65796.0,65795.0,0.70675936]
[1729703888549,0.41381751,65796.0,65795.0,0.73175959]
[1729703889613,0.37959831,65796.0,65795.0,0.73175959]
[1729703890534,0.37959831,65796.0,65795.0,0.46239973]
[1729703890945,0.37959831,65796.0,65795.0,0.72227877]
[1729703892467,0.37959831,65796.0,65795.0,0.69927877]
[1729703892676,0.37959831,65796.0,65795.0,0.724239]
[1729703892884,0.37959831,65796.0,65795.0,0.72423362]
[1729703894234,0.38042031,65796.0,65795.0,0.72423362]
[1729703894461,0.38042031,65796.0,65795.0,0.74423362]
[1729703894887,0.38042031,65796.0,65795.0,0.80500362]
[1729703895570,0.37648367,65796.0,65795.0,0.87254208]
[1729703895810,0.37648367,65796.0,65795.0,0.80500362]
[1729703896322,0.37648367,65796.0,65795.0,0.8050004]
[1729703896525,0.34226747,65796.0,65795.0,0.8050004]
[1729703896947,0.001722,65806.0,65805.0,0.01696023]
[1729703897175,0.001722,65806.0,65805.0,0.7441674]
[1729703897393,0.001724,65808.0,65807.0,0.26891923]
[1729703897599,0.001722,65823.0,65816.0,0.28189823]
[1729703897600,0.21980191,65817.0,65816.0,0.28189823]
[1729703897802,0.21980191,65817.0,65816.0,0.72001278]
[1729703898001,0.001722,65823.0,65822.0,0.156924]
[1729703898213,0.001722,65823.0,65822.0,0.591998]
[1729703898440,0.001722,65823.0,65822.0,0.58916717]
[1729703898654,0.21979991,65827.0,65826.0,0.156915]
[1729703898878,0.21979991,65827.0,65826.0,0.02186032]
[1729703899112,0.45574,65827.0,65826.0,0.02186032]
[1729703899322,0.45574,65827.0,65826.0,0.01235583]
[1729703899541,0.45574,65827.0,65822.0,0.005]
[1729703899748,0.45574,65827.0,65825.0,0.151915]
[1729703899955,0.45574,65827.0,65826.0,0.16427064]
[1729703900130,0.45574,65827.0,65826.0,0.01235564]
[1729703900381,0.71561904,65827.0,65826.0,0.01235564]
[1729703900576,0.71561904,65827.0,65826.0,0.01235577]
[1729703900577,0.45574,65827.0,65826.0,0.01235577]
[1729703900798,0.64424,65827.0,65826.0,0.00475217]
[1729703901004,0.45574,65827.0,65826.0,0.00475217]
[1729703901215,0.44574,65827.0,65826.0,0.00475217]
[1729703901843,0.43574,65827.0,65826.0,0.00475217]
[1729703903404,0.43574,65827.0,65813.0,0.22807791]
[1729703903622,0.43574,65827.0,65816.0,0.151938]
[1729703903828,0.1837,65826.0,65817.0,0.0047524]
[1729703904096,0.1837,65826.0,65818.0,0.0047524]
[1729703904313,0.1837,65826.0,65819.0,0.0047524]
[1729703904552,0.43574,65825.0,65820.0,0.0047524]
[1729703904768,0.43574,65825.0,65821.0,0.0047524]
[1729703904988,0.43574,65825.0,65822.0,0.0047524]
[1729703905201,0.43574,65825.0,65823.0,0.0047524]
[1729703905442,0.43574,65825.0,65824.0,0.0047524]
[1729703906535,0.51134,65825.0,65824.0,0.0047524]
[1729703906743,0.151923,65823.0,65810.0,0.02]
[1729703906996,0.00379838,65822.0,65811.0,0.00760478]
[1729703907196,0.00379838,65822.0,65812.0,0.00760478]
[1729703907197,0.15193,65820.0,65812.0,0.00760478]
[1729703907413,0.00379837,65819.0,65813.0,0.00760478]
[1729703907623,0.00379837,65819.0,65814.0,0.00760478]
[1729703907624,0.25987904,65817.0,65814.0,0.00760478]
[1729703907855,0.25987904,65817.0,65810.0,0.02]
[1729703907856,0.25987904,65817.0,65815.0,0.00760478]
[1729703908065,0.43574,65816.0,65810.0,0.02283311]
[1729703908289,0.43574,65816.0,65811.0,0.01711096]
[1729703908500,0.43574,65816.0,65812.0,0.01711096]
[1729703908708,0.25987904,65813.0,65810.0,0.02]
[1729703908921,0.25987904,65813.0,65811.0,0.017111]
[1729703909170,0.418629,65812.0,65810.0,0.02]
[1729703911298,0.418629,65812.0,65810.0,0.171952]
[1729703911508,0.418629,65812.0,65811.0,0.15195]
[1729703912448,0.418629,65812.0,65811.0,0.30745381]
[1729703912652,0.38440799,65812.0,65811.0,0.30745381]
[1729703916098,0.38440799,65812.0,65811.0,0.43545381]
[1729703916312,0.38440799,65812.0,65811.0,0.43741404]
[1729703916541,0.33688775,65812.0,65811.0,0.43545381]
[1729703917324,0.33688775,65812.0,65811.0,0.42957694]
[1729703918889,0.33688775,65812.0,65811.0,0.43432915]
[1729703919154,0.33688775,65812.0,65811.0,0.43242871]
[1729703919832,0.33688775,65812.0,65811.0,0.42480945]
[1729703920440,0.33688775,65812.0,65811.0,0.41980981]
[1729703920658,0.33688775,65812.0,65811.0,0.012356]
[1729703921949,0.33688775,65812.0,65811.0,0.012396]
[1729703923186,0.33688775,65812.0,65811.0,0.164346]
[1729703923807,0.33688775,65812.0,65811.0,0.16434778]
[1729703928490,0.33688775,65812.0,65811.0,0.15199]
[1729703928730,0.33688775,65812.0,65811.0,0.16434776]
[1729703928946,0.33688775,65812.0,65811.0,0.31985157]
[1729703930276,0.33688775,65812.0,65811.0,0.36524562]
[1729703930483,0.33688775,65812.0,65811.0,0.31985157]
[1729703930909,0.33688775,65812.0,65811.0,0.38811286]
[1729703931153,0.33688775,65812.0,65811.0,0.32935663]
[1729703931390,0.33688775,65812.0,65811.0,0.42038335]
[1729703931614,0.33688775,65812.0,65811.0,0.44284176]
[1729703931829,0.33688775,65812.0,65811.0,0.44448576]
[1729703932046,0.33770975,65812.0,65811.0,0.44448576]
[1729703932492,0.33770975,65812.0,65811.0,0.33100063]
[1729703932722,0.33770975,65812.0,65811.0,0.30913781]
[1729703932927,0.33770975,65812.0,65811.0,0.3309985]
[1729703934264,0.33770975,65812.0,65811.0,0.39926994]
[1729703934491,0.33770975,65812.0,65811.0,0.3309985]
[1729703935171,0.33770975,65812.0,65811.0,0.32149385]
[1729703935392,0.33770975,65812.0,65811.0,0.31649385]
[1729703935610,0.33770975,65812.0,65811.0,0.32149385]
[1729703937714,0.33770975,65812.0,65811.0,0.30913781]
[1729703937920,0.33770975,65812.0,65811.0,0.32149402]
[1729703938765,0.33770975,65812.0,65811.0,0.36701068]
[1729703939191,0.33770975,65812.0,65811.0,0.39197091]
[1729703939828,0.33770975,65812.0,65811.0,0.39001068]
[1729703940907,0.33770975,65812.0,65811.0,0.37765447]
[1729703941128,0.33770975,65812.0,65811.0,0.38240676]
[1729703941408,0.33770975,65812.0,65811.0,0.414729]
[1729703941631,0.33770975,65812.0,65811.0,0.43747809]
[1729703941849,0.33770975,65812.0,65811.0,0.43551786]
[1729703942074,0.33770975,65812.0,65811.0,0.43747809]
[1729703942530,0.33770975,65812.0,65811.0,0.34449377]
[1729703942770,0.33770975,65812.0,65811.0,0.43551786]
[1729703943030,0.33770975,65812.0,65811.0,0.451454]
[1729703943245,0.33770975,65812.0,65811.0,0.446454]
[1729703943672,0.33770975,65812.0,65811.0,0.52315586]
[1729703943889,0.33770975,65812.0,65811.0,0.52790782]
[1729703944106,0.33770975,65812.0,65811.0,0.44645314]
[1729703944538,0.33770975,65812.0,65811.0,0.44449291]
[1729703945025,0.41570975,65812.0,65811.0,0.32149291]
[1729703945271,0.41570975,65812.0,65811.0,0.31388977]
[1729703945688,0.33770975,65812.0,65811.0,0.49898051]
[1729703946988,0.33770975,65812.0,65811.0,0.51722855]
[1729703947206,0.33770975,65812.0,65811.0,0.56749634]
[1729703947629,0.33770975,65812.0,65811.0,0.67249634]
[1729703947914,0.33770975,65812.0,65811.0,0.69525412]
[1729703948137,0.33770975,65812.0,65811.0,0.6269808]
[1729703948347,0.33770975,65812.0,65811.0,0.71800907]
[1729703948555,0.33770975,65812.0,65811.0,0.6269808]
[1729703948761,0.33770975,65812.0,65811.0,0.62894103]
[1729703948968,0.33770975,65812.0,65811.0,0.71800907]
[1729703949192,0.33770975,65812.0,65811.0,0.63394103]
[1729703950086,0.33770975,65812.0,65811.0,0.44949403]
[1729703950301,0.33770975,65812.0,65811.0,0.74575846]
[1729703950543,0.33770975,65812.0,65811.0,0.71275846]
[1729703950774,0.41360975,65812.0,65811.0,0.53527169]
[1729703950997,0.41360975,65812.0,65811.0,0.32149403]
[1729703951206,0.41360975,65812.0,65811.0,0.3138902]
[1729703951414,0.41360975,65812.0,65811.0,0.32149414]
[1729703952501,0.41360975,65812.0,65811.0,0.00643639]
[1729703952947,0.41360975,65812.0,65811.0,0.001684]
[1729703955797,0.41360975,65812.0,65811.0,0.153634]
[1729703956224,0.41360975,65812.0,65811.0,0.30413781]
[1729703956672,0.41360975,65812.0,65811.0,0.15218781]
[1729703956880,0.41360975,65812.0,65811.0,0.30413781]
[1729703958775,0.33770975,65812.0,65811.0,0.31172387]
[1729703958982,0.33770975,65812.0,65811.0,0.30889064]
[1729703959406,0.33770975,65812.0,65811.0,0.31389064]
[1729703959646,0.33770975,65812.0,65811.0,0.32149464]
[1729703960800,0.33770975,65812.0,65811.0,0.3214939]
[1729703965706,0.33770975,65812.0,65811.0,0.32149413]
[1729703966125,0.33770975,65812.0,65811.0,0.31649413]
[1729703966487,0.33770975,65812.0,65811.0,0.00643643]
[1729703967025,0.33770975,65812.0,65811.0,0.001684]
[1729703967257,0.61410975,65812.0,65811.0,0.001684]
[1729703967510,0.79159652,65812.0,65811.0,0.001684]
[1729703967672,0.61410975,65812.0,65811.0,0.001684]
[1729703967880,0.61410975,65812.0,65811.0,0.153634]
[1729703968275,0.33770975,65812.0,65811.0,0.30413781]
[1729703968477,0.33770975,65812.0,65811.0,0.3167236]
[1729703968687,0.33770975,65812.0,65811.0,0.31389049]
[1729703968973,0.33770975,65812.0,65811.0,0.32149432]
[1729703970745,0.33770975,65812.0,65811.0,0.32876139]
[1729703971515,0.33770975,65812.0,65811.0,0.31640488]
[1729703971717,0.33770975,65812.0,65811.0,0.3287611]
[1729703974586,0.33770975,65812.0,65811.0,0.37428701]
[1729703974836,0.33770975,65812.0,65811.0,0.39704997]
[1729703975038,0.33770975,65812.0,65811.0,0.3287611]
[1729703975242,0.33770975,65812.0,65811.0,0.51981293]
[1729703976448,0.33770975,65812.0,65811.0,0.4287611]
[1729703977185,0.33770975,65812.0,65811.0,0.67983901]
[1729703977445,0.33770975,65812.0,65811.0,0.46372133]
[1729703978532,0.18575975,65812.0,65811.0,0.6412081]
[1729703978729,0.15675966,65812.0,65811.0,0.70385188]
[1729703978962,0.15675966,65812.0,65811.0,0.85277617]
[1729703979178,0.15675966,65812.0,65811.0,0.6752894]
[1729703979374,0.15675966,65812.0,65811.0,0.71620459]
[1729703980043,0.15675966,65812.0,65811.0,0.53871782]
[1729703980431,0.12675966,65812.0,65811.0,0.53871782]
[1729703980673,0.12675966,65812.0,65811.0,0.71620459]
[1729703981024,0.09672491,65812.0,65811.0,0.53871782]
[1729703983185,0.09672491,65812.0,65811.0,0.46371782]
[1729703983424,0.09672491,65812.0,65811.0,0.43875759]
[1729703983912,0.09672491,65812.0,65811.0,0.49434714]
[1729703984143,0.09672491,65812.0,65811.0,0.42615592]
[1729703985588,0.09672491,65812.0,65811.0,0.47161693]
[1729703985814,0.09672491,65812.0,65811.0,0.46686589]
[1729703986051,0.09672491,65812.0,65811.0,0.47161761]
[1729703986334,0.09672491,65812.0,65811.0,0.4261566]
[1729703986573,0.09672491,65812.0,65811.0,0.45871958]
[1729703987632,0.09672491,65812.0,65811.0,0.55464119]
[1729703988448,0.09672491,65812.0,65811.0,0.57737145]
[1729703988653,0.09672491,65812.0,65811.0,0.46371958]
[1729703995647,0.09672491,65812.0,65811.0,0.64120635]
[1729703996314,0.09672491,65812.0,65811.0,0.62885188]
[1729703996592,0.09672491,65812.0,65811.0,0.64120405]
[1729703997090,0.09672491,65812.0,65811.0,0.46371728]
[1729703998440,0.09672491,65812.0,65811.0,0.59997822]
[1729703998855,0.09672491,65812.0,65811.0,0.58997822]
[1729703999021,0.09672491,65812.0,65811.0,0.59997822]
[1729703999671,0.09672491,65812.0,65811.0,0.46371728]
[1729704001513,0.09672491,65812.0,65811.0,0.46175705]
[1729704002103,0.09672491,65812.0,65811.0,0.46371728]
[1729704002308,0.09672491,65812.0,65811.0,0.46175813]
[1729704003219,0.09672491,65812.0,65811.0,0.45175813]
[1729704003434,0.09672491,65812.0,65811.0,0.32375813]
[1729704004673,0.09672491,65812.0,65811.0,0.42375813]
[1729704005004,0.09672491,65812.0,65811.0,0.42875813]
[1729704005214,0.09672491,65812.0,65811.0,0.45175813]
[1729704005839,0.09672491,65812.0,65811.0,0.42375813]
[1729704008785,0.09672491,65812.0,65811.0,0.41649106]
[1729704009013,0.09672491,65812.0,65811.0,0.31649106]
[1729704009232,0.09672491,65812.0,65811.0,0.16598725]
[1729704009453,0.37362491,65812.0,65811.0,0.16598725]
[1729704009846,0.37362491,65812.0,65811.0,0.15838525]
[1729704011408,0.37362491,65812.0,65811.0,0.00643525]
[1729704011876,0.52557191,65812.0,65811.0,0.001684]
[1729704012080,0.37362491,65812.0,65811.0,0.001684]
[1729704014782,0.37362491,65812.0,65811.0,0.153634]
[1729704015037,0.37362491,65812.0,65811.0,0.001684]
[1729704021310,0.37362491,65812.0,65811.0,0.30413781]
[1729704021951,0.37362491,65812.0,65811.0,0.30889035]
[1729704022302,0.37362491,65812.0,65811.0,0.15694035]
[1729704022760,0.37362491,65812.0,65811.0,0.15218781]
[1729704022962,0.37362491,65812.0,65811.0,0.30413781]
[1729704023219,0.37362491,65812.0,65811.0,0.30889025]
[1729704023703,0.37362491,65812.0,65811.0,0.15694025]
[1729704023891,0.37362491,65812.0,65811.0,0.001684]
[1729704024320,0.52557191,65812.0,65811.0,0.001684]
[1729704024544,0.37362491,65812.0,65811.0,0.001684]
[1729704024973,0.52557191,65812.0,65811.0,0.001684]
[1729704025183,0.37362491,65812.0,65811.0,0.001684]
[1729704026945,0.52557191,65812.0,65811.0,0.001684]
[1729704027394,0.37362491,65812.0,65811.0,0.001684]
[1729704027825,0.52557191,65812.0,65811.0,0.001684]
[1729704028029,0.37362491,65812.0,65811.0,0.001684]
[1729704028437,0.52557191,65812.0,65811.0,0.001684]
[1729704028632,0.37362491,65812.0,65811.0,0.001684]
[1729704028838,0.52557191,65812.0,65811.0,0.001684]
[1729704029109,0.37362491,65812.0,65811.0,0.001684]
[1729704029328,0.52557191,65812.0,65811.0,0.001684]
[1729704030244,0.53057191,65812.0,65811.0,0.001684]
[1729704031630,0.37362491,65812.0,65811.0,0.001684]
[1729704031845,0.3866942,65812.0,65811.0,0.001684]
[1729704032665,0.3866942,65812.0,65811.0,0.00643663]
[1729704032868,0.3866942,65812.0,65811.0,0.001684]
[1729704033082,0.3866942,65812.0,65811.0,0.00643682]
[1729704033296,0.3866942,65812.0,65811.0,0.15838682]
[1729704033503,0.3866942,65812.0,65811.0,0.15838685]
[1729704033701,0.1888942,65812.0,65811.0,0.15838685]
[1729704034010,0.1888942,65812.0,65811.0,0.52212423]
[1729704034011,0.1097942,65812.0,65811.0,0.52212423]
[1729704034218,0.000822,65817.0,65816.0,0.005]
[1729704034435,0.000822,65817.0,65816.0,0.79212843]
[1729704034686,0.000822,65817.0,65816.0,0.79973225]
[1729704034936,0.000822,65817.0,65816.0,0.80473225]
[1729704035148,0.000822,65817.0,65816.0,0.80861323]
[1729704035361,0.000822,65817.0,65816.0,0.80473225]
[1729704035577,0.000822,65817.0,65816.0,0.81811478]
[1729704035810,0.000822,65817.0,65816.0,0.64062801]
[1729704036014,0.000822,65817.0,65816.0,0.81811478]
[1729704036227,0.000822,65817.0,65816.0,0.8142338]
[1729704036646,0.000822,65817.0,65816.0,0.80473225]
[1729704038138,0.000822,65817.0,65816.0,0.62724548]
[1729704038346,0.000822,65817.0,65816.0,0.80473225]
[1729704039198,0.000822,65817.0,65816.0,0.80973225]
[1729704041259,0.000822,65817.0,65816.0,0.63224548]
[1729704041472,0.000822,65817.0,65816.0,0.80973225]
[1729704042588,0.000822,65817.0,65816.0,0.88807359]
[1729704043878,0.000822,65817.0,65816.0,0.72293856]
[1729704044089,0.000822,65817.0,65816.0,0.90042533]
[1729704044294,0.000822,65817.0,65816.0,0.80972732]
[1729704044505,0.000822,65817.0,65816.0,0.80972733]
[1729704044717,0.000822,65826.0,65825.0,0.464364]
[1729704044961,0.000822,65826.0,65825.0,0.69522258]
[1729704045579,0.000822,65826.0,65825.0,0.75596658]
[1729704046515,0.000822,65826.0,65825.0,0.68796356]
[1729704046724,0.000822,65826.0,65825.0,0.68796262]
[1729704048239,0.22285269,65834.0,65833.0,0.151899]
[1729704048456,0.001724,65835.0,65834.0,0.251897]
[1729704048671,0.001724,65835.0,65834.0,0.6174275]
[1729704048896,0.22807791,65841.0,65840.0,0.151883]
[1729704049119,0.0174684,65846.0,65845.0,0.151871]
[1729704049337,0.0174684,65846.0,65845.0,0.48268998]
[1729704049565,0.0174684,65846.0,65845.0,0.47986158]
[1729704049773,0.0174684,65846.0,65845.0,0.48961122]
[1729704051362,0.0174684,65846.0,65845.0,0.51261122]
[1729704052218,0.0174684,65846.0,65845.0,0.5199141]
[1729704052638,0.0174684,65846.0,65845.0,0.52187433]
[1729704052841,0.0174684,65846.0,65845.0,0.62187433]
[1729704053044,0.0174684,65846.0,65845.0,0.6199141]
[1729704054303,0.0174684,65846.0,65845.0,0.61516446]
[1729704054916,0.0174684,65846.0,65845.0,0.61991371]
[1729704057004,0.0174684,65846.0,65845.0,0.44242694]
[1729704057217,0.0174684,65846.0,65845.0,0.61991371]
[1729704057419,0.0174684,65846.0,65845.0,0.60451251]
[1729704057628,0.0174684,65846.0,65845.0,0.59691371]
[1729704058047,0.4730784,65846.0,65845.0,0.59691371]
[1729704059113,0.4730784,65846.0,65845.0,0.60451251]
[1729704059313,0.4739004,65846.0,65845.0,0.60451251]
[1729704060575,0.4739004,65846.0,65845.0,0.01234805]
[1729704060781,0.4739004,65846.0,65845.0,0.15662025]
[1729704061011,0.4739004,65846.0,65845.0,0.30712406]
[1729704061265,0.4739004,65846.0,65845.0,0.31472383]
[1729704061531,0.4739004,65846.0,65845.0,0.31972383]
[1729704062191,0.4739004,65846.0,65845.0,0.34272383]
[1729704062399,0.4739004,65846.0,65845.0,0.34468406]
[1729704062618,0.4739004,65846.0,65845.0,0.33708435]
[1729704062874,0.4739004,65846.0,65845.0,0.44468326]
[1729704063293,0.43970604,65846.0,65845.0,0.44468326]
[1729704064200,0.43970604,65846.0,65845.0,0.44968326]
[1729704064646,0.43970604,65846.0,65845.0,0.44772303]
[1729704064864,0.43970604,65846.0,65845.0,0.45159509]
[1729704065301,0.43970604,65846.0,65845.0,0.44272303]
[1729704065563,0.43970604,65846.0,65845.0,0.41859532]
[1729704065790,0.43970604,65846.0,65845.0,0.41472303]
[1729704066054,0.94992801,65846.0,65843.0,0.00387229]
[1729704066309,0.94992801,65846.0,65834.0,0.00387229]
[1729704066310,0.420994,65835.0,65834.0,0.00387229]
[1729704066551,0.420994,65835.0,65821.0,0.22807791]
[1729704066552,0.303803,65832.0,65821.0,0.22807791]
[1729704066792,0.303803,65832.0,65814.0,0.29581791]
[1729704066793,0.17748677,65822.0,65814.0,0.22807791]
[1729704067029,0.27509843,65821.0,65814.0,0.22807791]
[1729704067258,0.27509843,65821.0,65810.0,0.33121128]
[1729704067259,0.71398247,65821.0,65810.0,0.33121128]
[1729704067470,0.00379843,65820.0,65814.0,0.151942]
[1729704067688,0.00379843,65820.0,65812.0,0.303891]
[1729704067898,0.43888404,65819.0,65814.0,0.151943]
[1729704068153,0.43888404,65819.0,65810.0,0.3239]
[1729704068365,0.43780857,65819.0,65810.0,0.3239]
[1729704068788,0.43780857,65819.0,65813.0,0.303891]
[1729704069016,0.43780857,65819.0,65815.0,0.151939]
[1729704069227,0.43780857,65819.0,65818.0,0.30243781]
[1729704071498,0.43780857,65819.0,65818.0,0.30408181]
[1729704072330,0.43780857,65819.0,65818.0,0.40408181]
[1729704072757,0.43780857,65819.0,65818.0,0.40604204]
[1729704072962,0.43780857,65819.0,65818.0,0.40408181]
[1729704073186,0.43780857,65819.0,65818.0,0.40604204]
[1729704073417,0.43780857,65819.0,65818.0,0.43404204]
[1729704074070,0.43780857,65819.0,65818.0,0.43208181]
[1729704074294,0.43780857,65819.0,65818.0,0.43404204]
[1729704076235,0.43780857,65819.0,65818.0,0.68438002]
[1729704076480,0.43780857,65819.0,65818.0,0.45164338]
[1729704077239,0.38593045,65819.0,65818.0,0.65958015]
[1729704077519,0.38593045,65819.0,65818.0,0.79912447]
[1729704077776,0.18536391,65828.0,65827.0,0.36936]
[1729704078022,0.22807791,65837.0,65836.0,0.28185223]
[1729704078257,0.22807791,65837.0,65836.0,0.61484281]
[1729704078505,0.22807791,65837.0,65836.0,0.62719407]
[1729704078734,0.080922,65862.0,65845.0,0.005]
[1729704078975,0.080922,65862.0,65845.0,0.40307127]
[1729704079213,0.00018295,65846.0,65845.0,0.34272607]
[1729704079694,0.00018295,65846.0,65845.0,0.5126115]
[1729704080202,0.00018295,65846.0,65845.0,0.52517601]
[1729704080441,0.00018295,65846.0,65845.0,0.48461098]
[1729704080908,0.45579295,65846.0,65845.0,0.48461098]
[1729704082662,0.45579295,65846.0,65845.0,0.51261098]
[1729704083373,0.45579295,65846.0,65845.0,0.65988257]
[1729704083607,0.45579295,65846.0,65845.0,0.62217031]
[1729704083851,0.45579295,65846.0,65845.0,0.66552122]
[1729704084078,0.45579295,65846.0,65845.0,0.66748145]